fUSD/lending_fUSD_20260625
["ID","MTS","AMOUNT","RATE_DAILY","PERIOD"]
[426394433,1782343846000,-1634.79999985,0.00012598,2]
[426394435,1782343873000,382.0,0.00028702,30]
[426394436,1782343875000,382.0,0.00029702,30]
[426394437,1782343876000,382.0,0.00030702,30]
[426394440,1782343951000,155.0,0.00028702,30]
[426394441,1782343991000,180.0,0.00028702,30]
[426394442,1782343992000,180.0,0.00029702,30]
[426394443,1782343993000,180.0,0.00030702,30]
[426394445,1782344079000,280.0,0.00028702,30]
[426394446,1782344080000,280.0,0.00029702,30]
[426394447,1782344081000,280.0,0.00030702,30]
[426394448,1782344149000,158.0,0.00028702,30]
[426394449,1782344150000,158.0,0.00029702,30]
[426394450,1782344152000,158.0,0.00030702,30]
[426394454,1782344282000,162.84,0.00031506,30]
[426394455,1782344358000,162.84,0.00031506,30]
[426394456,1782344525000,374.61,0.000315,30]
[426394463,1782344834000,306.13,0.000315,30]
[426394464,1782344836000,157.0,0.00028701,30]
[426394465,1782344838000,157.0,0.00029701,30]
[426394466,1782344839000,159.0,0.00030701,30]
[426394473,1782344840000,-166.66,0.00011183,2]
[426394472,1782344840000,-150.0,0.0001096,2]
[426394474,1782344840000,-33.34,0.00011357,2]
[426394471,1782344840000,-150.0,0.00010736,2]
[426394476,1782344843000,-369.47,0.00011402,2]
[426394475,1782344843000,-130.53,0.00011357,2]
[426394478,1782344845000,-166.66,0.00011419,2]
[426394479,1782344845000,-135.87,0.00011641,2]
[426394477,1782344845000,-197.47,0.00011402,2]
[426394483,1782344847000,-145.34,0.00011808,2]
[426394481,1782344847000,-166.66,0.00011654,2]
[426394480,1782344847000,-28.0,0.00011641,2]
[426394482,1782344847000,-160.0,0.0001172,2]
[426394486,1782344849000,-18.90477354,0.00011808,2]
[426394485,1782344849000,-481.09522646,0.00011808,2]
[426394487,1782344850000,-481.09522646,0.00011808,2]
[426394488,1782344850000,-18.90477354,0.00011808,2]
[426394489,1782344852000,-481.09522646,0.00011808,2]
[426394490,1782344852000,-18.90477354,0.00011808,2]
[426394492,1782344854000,-18.90477354,0.00011808,2]
[426394491,1782344854000,-481.09522646,0.00011808,2]
[426394493,1782344866000,462.1,0.000309,120]
[426394496,1782344893000,250.0,0.00028701,30]
[426394497,1782344894000,250.0,0.00029701,30]
[426394498,1782344896000,250.0,0.00030701,30]
[426394501,1782344936000,325.0,0.00028709,30]
[426394502,1782344938000,325.0,0.00029709,30]
[426394503,1782344939000,325.0,0.00030709,30]
[426394579,1782345032000,-500.0,0.00011809,2]
[426394577,1782345032000,-257.095548,0.00011809,2]
[426394590,1782345032000,-166.66,0.00012125,2]
[426394591,1782345032000,-167.35,0.00012125,2]
[426394575,1782345032000,-200.0,0.00011544,2]
[426394593,1782345032000,-179.08,0.00012329,2]
[426394576,1782345032000,-242.904452,0.00011809,2]
[426394586,1782345032000,-166.66,0.0001189,2]
[426394581,1782345032000,-250.0,0.0001181,2]
[426394595,1782345032000,-165.81373285,0.00012412,2]
[426394582,1782345032000,-569.70339284,0.00011866,2]
[426394588,1782345032000,-398.31,0.00011925,2]
[426394583,1782345032000,-1155.58666498,0.00011866,2]
[426394578,1782345032000,-500.0,0.00011809,2]
[426394594,1782345032000,-166.66,0.0001236,2]
[426394584,1782345032000,-3681.87890788,0.00011866,2]
[426394592,1782345032000,-163.87,0.00012208,2]
[426394589,1782345032000,-150.0,0.00011998,2]
[426394580,1782345032000,-267.08041354,0.00011809,2]
[426394585,1782345032000,-1624.11926312,0.00011866,2]
[426394587,1782345032000,-163.87,0.00011925,2]
[426394611,1782345033000,-335.74290691,0.00012498,2]
[426394599,1782345033000,-150.0,0.00012473,2]
[426394597,1782345033000,-159.277,0.00012422,2]
[426394596,1782345033000,-2051.03,0.00012422,2]
[426394598,1782345033000,-162.49,0.00012422,2]
[426394602,1782345033000,-152.0,0.00012474,2]
[426394601,1782345033000,-152.0,0.00012474,2]
[426394603,1782345033000,-152.0,0.00012474,2]
[426394610,1782345033000,-163.87,0.00012492,2]
[426394612,1782345033000,-165.81373285,0.00012535,2]
[426394600,1782345033000,-152.0,0.00012474,2]
[426394604,1782345033000,-152.0,0.00012474,2]
[426394606,1782345033000,-549.44193156,0.00012474,2]
[426394616,1782345033000,-93457.30229965,0.00012574,2]
[426394619,1782345033000,-360.25876547,0.00012574,2]
[426394614,1782345033000,-646.23243154,0.00012573,3]
[426394613,1782345033000,-176.13934074,0.00012564,2]
[426394618,1782345033000,-598.11608618,0.00012574,2]
[426394609,1782345033000,-1412.66672696,0.00012474,2]
[426394608,1782345033000,-13700.53445714,0.00012474,2]
[426394605,1782345033000,-288.0,0.00012474,2]
[426394607,1782345033000,-10810.44242062,0.00012474,2]
[426394667,1782345038000,-150.0,0.00012639,2]
[426394660,1782345038000,-311.0,0.00012638,2]
[426394661,1782345038000,-317.0,0.00012638,2]
[426394662,1782345038000,-151.0,0.00012638,2]
[426394659,1782345038000,-316.0,0.00012638,2]
[426394664,1782345038000,-151.0,0.00012639,2]
[426394663,1782345038000,-313.0,0.00012639,2]
[426394658,1782345038000,-153.0,0.00012638,2]
[426394669,1782345038000,-319.0,0.00012639,2]
[426394681,1782345038000,-10810.44242055,0.00012744,2]
[426394665,1782345038000,-150.0,0.00012639,2]
[426394666,1782345038000,-318.0,0.00012639,2]
[426394671,1782345038000,-151.0,0.00012639,2]
[426394673,1782345038000,-314.0,0.00012639,2]
[426394672,1782345038000,-309.0,0.00012639,2]
[426394674,1782345038000,-150.0,0.00012639,2]
[426394670,1782345038000,-310.0,0.00012639,2]
[426394675,1782345038000,-319.0,0.00012639,2]
[426394655,1782345038000,-152.0,0.00012638,2]
[426394668,1782345038000,-316.0,0.00012639,2]
[426394653,1782345038000,-494.60573956,0.00012608,2]
[426394636,1782345038000,-633010.27716575,0.00012574,2]
[426394649,1782345038000,-151.0,0.00012598,2]
[426394635,1782345038000,-4110.69992015,0.00012574,2]
[426394634,1782345038000,-315.0,0.00012574,2]
[426394637,1782345038000,-152.0,0.00012574,2]
[426394640,1782345038000,-1523.9000004,0.00012574,2]
[426394638,1782345038000,-711634.7550169,0.00012574,2]
[426394641,1782345038000,-1303.5633218,0.00012574,2]
[426394677,1782345038000,-310.0,0.00012641,2]
[426394639,1782345038000,-3599.7383199,0.00012574,2]
[426394642,1782345038000,-26702.8837099,0.00012584,2]
[426394656,1782345038000,-318.0,0.00012638,2]
[426394645,1782345038000,-151.0,0.00012598,2]
[426394644,1782345038000,-310.0,0.00012598,2]
[426394657,1782345038000,-314.0,0.00012638,2]
[426394647,1782345038000,-315.0,0.00012598,2]
[426394646,1782345038000,-500.0,0.00012598,2]
[426394648,1782345038000,-310.0,0.00012598,2]
[426394652,1782345038000,-4349.31,0.00012603,2]
[426394651,1782345038000,-309.0,0.00012598,2]
[426394654,1782345038000,-319.0,0.00012638,2]
[426394650,1782345038000,-317.0,0.00012598,2]
[426394643,1782345038000,-500.0,0.00012585,2]
[426394678,1782345038000,-320.0,0.00012651,2]
[426394700,1782345038000,-1030.563991,0.00013424,2]
[426394680,1782345038000,-312.0,0.000127,2]
[426394695,1782345038000,-1412.66672693,0.00013167,2]
[426394701,1782345038000,-696.283886,0.00013424,2]
[426394698,1782345038000,-335.74290689,0.00013299,2]
[426394710,1782345038000,-150.0,0.00013488,2]
[426394718,1782345038000,-150.0,0.00013488,2]
[426394714,1782345038000,-150.0,0.00013488,2]
[426394717,1782345038000,-150.0,0.00013488,2]
[426394713,1782345038000,-150.0,0.00013488,2]
[426394716,1782345038000,-150.0,0.00013488,2]
[426394705,1782345038000,-501.424244,0.00013424,2]
[426394712,1782345038000,-150.0,0.00013488,2]
[426394722,1782345038000,-1412.66672693,0.00013514,2]
[426394711,1782345038000,-150.0,0.00013488,2]
[426394719,1782345038000,-150.0,0.00013488,2]
[426394720,1782345038000,-150.0,0.00013505,2]
[426394724,1782345038000,-150.0,0.00013522,2]
[426394726,1782345038000,-150.0,0.00013525,2]
[426394723,1782345038000,-150.0,0.0001352,2]
[426394679,1782345038000,-500.0,0.00012699,2]
[426394725,1782345038000,-150.0,0.00013524,2]
[426394721,1782345038000,-150.0,0.00013506,2]
[426394703,1782345038000,-423.878608,0.00013424,2]
[426394715,1782345038000,-150.0,0.00013488,2]
[426394704,1782345038000,-271.866889,0.00013424,2]
[426394685,1782345038000,-900.0,0.000128,4]
[426394684,1782345038000,-165.64794187,0.00012798,2]
[426394682,1782345038000,-13700.53445711,0.00012744,2]
[426394691,1782345038000,-10810.44242055,0.00013013,2]
[426394676,1782345038000,-311.0,0.00012639,2]
[426394692,1782345038000,-13700.53445711,0.00013013,2]
[426394689,1782345038000,-1800.0,0.000129,4]
[426394688,1782345038000,-335.74290689,0.00012898,2]
[426394690,1782345038000,-500.0,0.00012904,2]
[426394693,1782345038000,-312.0,0.00013131,2]
[426394686,1782345038000,-1412.66672693,0.00012821,2]
[426394687,1782345038000,-500.0,0.00012872,2]
[426394694,1782345038000,-500.0,0.00013146,2]
[426394696,1782345038000,-10810.44242055,0.00013283,2]
[426394708,1782345038000,-226.66136262,0.00013488,2]
[426394706,1782345038000,-215.449231,0.00013424,2]
[426394707,1782345038000,-150.0,0.00013488,2]
[426394709,1782345038000,-150.0,0.00013488,2]
[426394697,1782345038000,-13700.53445711,0.00013283,2]
[426394683,1782345038000,-276.07990311,0.00012798,2]
[426394699,1782345038000,-398.31,0.00013415,2]
[426394801,1782345039000,-500.0,0.00013698,2]
[426394803,1782345039000,-503.63672194,0.00013698,2]
[426394799,1782345039000,-500.0,0.00013698,2]
[426394797,1782345039000,-500.0,0.00013698,2]
[426394806,1782345039000,-500.0,0.00013698,2]
[426394788,1782345039000,-549.44193156,0.00013687,2]
[426394792,1782345039000,-150.0,0.00013692,2]
[426394793,1782345039000,-150.0,0.00013692,2]
[426394790,1782345039000,-150.0,0.00013691,2]
[426394786,1782345039000,-150.0,0.00013679,2]
[426394784,1782345039000,-150.0,0.00013675,2]
[426394768,1782345039000,-150.0,0.00013636,2]
[426394795,1782345039000,-150.0,0.00013694,2]
[426394804,1782345039000,-500.0,0.00013698,2]
[426394826,1782345039000,-500.0,0.00013698,2]
[426394810,1782345039000,-500.0,0.00013698,2]
[426394812,1782345039000,-500.0,0.00013698,2]
[426394814,1782345039000,-500.0,0.00013698,2]
[426394816,1782345039000,-500.0,0.00013698,2]
[426394818,1782345039000,-500.0,0.00013698,2]
[426394820,1782345039000,-500.0,0.00013698,2]
[426394830,1782345039000,-500.0,0.00013698,2]
[426394824,1782345039000,-500.0,0.00013698,2]
[426394822,1782345039000,-500.0,0.00013698,2]
[426394828,1782345039000,-500.0,0.00013698,2]
[426394832,1782345039000,-542.12,0.00013698,2]
[426394834,1782345039000,-542.12,0.00013698,2]
[426394781,1782345039000,-150.0,0.0001367,2]
[426394808,1782345039000,-500.0,0.00013698,2]
[426394772,1782345039000,-150.0,0.00013643,2]
[426394736,1782345039000,-150.0,0.00013561,2]
[426394782,1782345039000,-150.0,0.00013673,2]
[426394836,1782345039000,-500.0,0.00013698,2]
[426394735,1782345039000,-150.0,0.00013556,2]
[426394734,1782345039000,-150.0,0.00013556,2]
[426394730,1782345039000,-150.0,0.00013543,2]
[426394733,1782345039000,-13700.53445711,0.00013552,2]
[426394729,1782345039000,-150.0,0.00013539,2]
[426394727,1782345039000,-276.07990311,0.00013532,2]
[426394731,1782345039000,-150.0,0.00013551,2]
[426394728,1782345039000,-150.0,0.00013539,2]
[426394732,1782345039000,-10810.44242055,0.00013552,2]
[426394739,1782345039000,-255.0,0.00013571,2]
[426394738,1782345039000,-150.0,0.00013562,2]
[426394743,1782345039000,-150.0,0.00013576,2]
[426394741,1782345039000,-150.0,0.00013573,2]
[426394749,1782345039000,-150.0,0.0001359,2]
[426394757,1782345039000,-150.0,0.00013607,2]
[426394751,1782345039000,-150.0,0.00013591,2]
[426394759,1782345039000,-150.0,0.00013615,2]
[426394747,1782345039000,-150.0,0.00013583,2]
[426394755,1782345039000,-150.0,0.00013599,2]
[426394753,1782345039000,-150.0,0.00013597,2]
[426394761,1782345039000,-150.0,0.00013617,2]
[426394763,1782345039000,-150.0,0.00013624,2]
[426394778,1782345039000,-150.0,0.00013658,2]
[426394776,1782345039000,-150.0,0.00013654,2]
[426394767,1782345039000,-150.0,0.00013634,2]
[426394765,1782345039000,-150.0,0.00013624,2]
[426394774,1782345039000,-150.0,0.00013647,2]
[426394779,1782345039000,-150.0,0.00013664,2]
[426394770,1782345039000,-150.0,0.00013641,2]
[426394838,1782345039000,-542.12,0.00013698,2]
[426394745,1782345039000,-150.0,0.0001358,2]
[426394849,1782345039000,-542.12,0.00013698,2]
[426394904,1782345039000,-500.0,0.00013698,2]
[426394912,1782345039000,-500.0,0.00013698,2]
[426394924,1782345039000,-500.0,0.00013698,2]
[426394918,1782345039000,-500.0,0.00013698,2]
[426394922,1782345039000,-500.0,0.00013698,2]
[426394920,1782345039000,-500.0,0.00013698,2]
[426394916,1782345039000,-500.0,0.00013698,2]
[426394914,1782345039000,-500.0,0.00013698,2]
[426394931,1782345039000,-500.0,0.00013698,2]
[426394928,1782345039000,-500.0,0.00013698,2]
[426394926,1782345039000,-500.0,0.00013698,2]
[426394935,1782345039000,-500.0,0.00013698,2]
[426394929,1782345039000,-500.0,0.00013698,2]
[426394933,1782345039000,-500.0,0.00013698,2]
[426394938,1782345039000,-500.0,0.00013698,2]
[426394939,1782345039000,-500.0,0.00013698,2]
[426394941,1782345039000,-500.0,0.00013698,2]
[426394943,1782345039000,-500.0,0.00013698,2]
[426394945,1782345039000,-500.0,0.00013698,2]
[426394947,1782345039000,-500.0,0.00013698,2]
[426394949,1782345039000,-500.0,0.00013698,2]
[426394957,1782345039000,-500.0,0.00013698,2]
[426394953,1782345039000,-500.0,0.00013698,2]
[426394960,1782345039000,-500.0,0.00013698,2]
[426394958,1782345039000,-500.0,0.00013698,2]
[426394951,1782345039000,-500.0,0.00013698,2]
[426394955,1782345039000,-500.0,0.00013698,2]
[426394962,1782345039000,-500.0,0.00013698,2]
[426394851,1782345039000,-500.0,0.00013698,2]
[426394908,1782345039000,-500.0,0.00013698,2]
[426394910,1782345039000,-500.0,0.00013698,2]
[426394959,1782345039000,-500.0,0.00013698,2]
[426394902,1782345039000,-626.51114016,0.00013698,2]
[426394906,1782345039000,-500.0,0.00013698,2]
[426394853,1782345039000,-542.12,0.00013698,2]
[426394839,1782345039000,-500.0,0.00013698,2]
[426394855,1782345039000,-500.0,0.00013698,2]
[426394845,1782345039000,-542.12,0.00013698,2]
[426394843,1782345039000,-500.0,0.00013698,2]
[426394847,1782345039000,-500.0,0.00013698,2]
[426394857,1782345039000,-500.0,0.00013698,2]
[426394861,1782345039000,-500.0,0.00013698,2]
[426394859,1782345039000,-500.0,0.00013698,2]
[426394862,1782345039000,-518.89469315,0.00013698,2]
[426394874,1782345039000,-500.0,0.00013698,2]
[426394864,1782345039000,-500.0,0.00013698,2]
[426394866,1782345039000,-500.0,0.00013698,2]
[426394868,1782345039000,-500.0,0.00013698,2]
[426394841,1782345039000,-542.12,0.00013698,2]
[426394878,1782345039000,-500.0,0.00013698,2]
[426394870,1782345039000,-500.0,0.00013698,2]
[426394898,1782345039000,-500.0,0.00013698,2]
[426394896,1782345039000,-500.0,0.00013698,2]
[426394892,1782345039000,-500.0,0.00013698,2]
[426394890,1782345039000,-500.0,0.00013698,2]
[426394886,1782345039000,-500.0,0.00013698,2]
[426394894,1782345039000,-500.0,0.00013698,2]
[426394888,1782345039000,-500.0,0.00013698,2]
[426394876,1782345039000,-500.0,0.00013698,2]
[426394884,1782345039000,-500.0,0.00013698,2]
[426394872,1782345039000,-500.0,0.00013698,2]
[426394900,1782345039000,-500.0,0.00013698,2]
[426394880,1782345039000,-500.0,0.00013698,2]
[426394882,1782345039000,-500.0,0.00013698,2]
[426395049,1782345040000,-500.0,0.00013698,2]
[426395019,1782345040000,-500.0,0.00013698,2]
[426395029,1782345040000,-500.0,0.00013698,2]
[426395037,1782345040000,-500.0,0.00013698,2]
[426395035,1782345040000,-500.0,0.00013698,2]
[426395033,1782345040000,-500.0,0.00013698,2]
[426395061,1782345040000,-500.0,0.00013698,2]
[426395045,1782345040000,-500.0,0.00013698,2]
[426395047,1782345040000,-500.0,0.00013698,2]
[426395041,1782345040000,-207.02,0.00013698,2]
[426395027,1782345040000,-500.0,0.00013698,2]
[426395031,1782345040000,-500.0,0.00013698,2]
[426395059,1782345040000,-500.0,0.00013698,2]
[426395055,1782345040000,-500.0,0.00013698,2]
[426395057,1782345040000,-500.0,0.00013698,2]
[426395051,1782345040000,-500.0,0.00013698,2]
[426395039,1782345040000,-500.0,0.00013698,2]
[426395043,1782345040000,-500.0,0.00013698,2]
[426395065,1782345040000,-500.0,0.00013698,2]
[426395063,1782345040000,-500.0,0.00013698,2]
[426395069,1782345040000,-500.0,0.00013698,2]
[426395071,1782345040000,-500.0,0.00013698,2]
[426395067,1782345040000,-500.0,0.00013698,2]
[426395073,1782345040000,-500.0,0.00013698,2]
[426395015,1782345040000,-500.0,0.00013698,2]
[426395075,1782345040000,-500.0,0.00013698,2]
[426395053,1782345040000,-500.0,0.00013698,2]
[426395025,1782345040000,-500.0,0.00013698,2]
[426395004,1782345040000,-562.9,0.00013698,2]
[426395021,1782345040000,-500.0,0.00013698,2]
[426395077,1782345040000,-500.0,0.00013698,2]
[426394966,1782345040000,-500.0,0.00013698,2]
[426394964,1782345040000,-500.0,0.00013698,2]
[426394968,1782345040000,-500.0,0.00013698,2]
[426394971,1782345040000,-500.0,0.00013698,2]
[426394972,1782345040000,-551.62922069,0.00013698,2]
[426394979,1782345040000,-500.0,0.00013698,2]
[426394977,1782345040000,-500.0,0.00013698,2]
[426394982,1782345040000,-500.0,0.00013698,2]
[426394975,1782345040000,-500.0,0.00013698,2]
[426394980,1782345040000,-532.63504897,0.00013698,2]
[426394984,1782345040000,-500.0,0.00013698,2]
[426394987,1782345040000,-500.0,0.00013698,2]
[426394999,1782345040000,-562.9,0.00013698,2]
[426395006,1782345040000,-562.9,0.00013698,2]
[426394991,1782345040000,-500.0,0.00013698,2]
[426395001,1782345040000,-562.9,0.00013698,2]
[426394993,1782345040000,-500.0,0.00013698,2]
[426394988,1782345040000,-500.0,0.00013698,2]
[426395003,1782345040000,-562.9,0.00013698,2]
[426394994,1782345040000,-500.0,0.00013698,2]
[426394997,1782345040000,-562.9,0.00013698,2]
[426395008,1782345040000,-562.9,0.00013698,2]
[426395009,1782345040000,-500.0,0.00013698,2]
[426395012,1782345040000,-500.0,0.00013698,2]
[426395023,1782345040000,-500.0,0.00013698,2]
[426395014,1782345040000,-500.0,0.00013698,2]
[426395017,1782345040000,-500.0,0.00013698,2]
[426395083,1782345040000,-520.11,0.00013698,2]
[426395079,1782345040000,-500.0,0.00013698,2]
[426395205,1782345040000,-150.0,0.00013743,2]
[426395158,1782345040000,-2327.39,0.00013698,2]
[426395149,1782345040000,-2327.39,0.00013698,2]
[426395153,1782345040000,-2327.39,0.00013698,2]
[426395160,1782345040000,-1857.37,0.00013698,2]
[426395163,1782345040000,-1857.37,0.00013698,2]
[426395169,1782345040000,-1857.37,0.00013698,2]
[426395167,1782345040000,-1857.37,0.00013698,2]
[426395165,1782345040000,-1857.37,0.00013698,2]
[426395171,1782345040000,-1857.37,0.00013698,2]
[426395179,1782345040000,-213.64,0.00013699,2]
[426395175,1782345040000,-200.0,0.00013699,2]
[426395173,1782345040000,-1857.37,0.00013698,2]
[426395151,1782345040000,-2327.39,0.00013698,2]
[426395161,1782345040000,-1857.37,0.00013698,2]
[426395184,1782345040000,-723.55,0.00013699,2]
[426395183,1782345040000,-890.2,0.00013699,2]
[426395189,1782345040000,-335.74290689,0.00013699,2]
[426395191,1782345040000,-150.0,0.000137,2]
[426395187,1782345040000,-29767.09,0.00013699,2]
[426395195,1782345040000,-150.0,0.00013709,2]
[426395193,1782345040000,-150.0,0.00013707,2]
[426395197,1782345040000,-150.0,0.0001371,2]
[426395199,1782345040000,-150.0,0.00013711,2]
[426395201,1782345040000,-150.0,0.00013726,2]
[426395203,1782345040000,-150.0,0.00013728,2]
[426395085,1782345040000,-520.11,0.00013698,2]
[426395180,1782345040000,-178.04,0.00013699,2]
[426395157,1782345040000,-2327.39,0.00013698,2]
[426395177,1782345040000,-2500.0,0.00013699,2]
[426395159,1782345040000,-2327.39,0.00013698,2]
[426395081,1782345040000,-176.01433661,0.00013698,2]
[426395155,1782345040000,-2327.39,0.00013698,2]
[426395087,1782345040000,-520.11,0.00013698,2]
[426395089,1782345040000,-520.11,0.00013698,2]
[426395091,1782345040000,-520.11,0.00013698,2]
[426395097,1782345040000,-500.0,0.00013698,2]
[426395093,1782345040000,-520.11,0.00013698,2]
[426395095,1782345040000,-520.11,0.00013698,2]
[426395101,1782345040000,-500.0,0.00013698,2]
[426395103,1782345040000,-500.0,0.00013698,2]
[426395109,1782345040000,-500.0,0.00013698,2]
[426395105,1782345040000,-500.0,0.00013698,2]
[426395107,1782345040000,-600.58062303,0.00013698,2]
[426395111,1782345040000,-500.0,0.00013698,2]
[426395099,1782345040000,-500.0,0.00013698,2]
[426395145,1782345040000,-500.0,0.00013698,2]
[426395143,1782345040000,-500.0,0.00013698,2]
[426395113,1782345040000,-500.0,0.00013698,2]
[426395147,1782345040000,-2327.39,0.00013698,2]
[426395141,1782345040000,-500.0,0.00013698,2]
[426395139,1782345040000,-500.0,0.00013698,2]
[426395125,1782345040000,-500.0,0.00013698,2]
[426395123,1782345040000,-500.0,0.00013698,2]
[426395121,1782345040000,-500.0,0.00013698,2]
[426395119,1782345040000,-500.0,0.00013698,2]
[426395117,1782345040000,-500.0,0.00013698,2]
[426395115,1782345040000,-500.0,0.00013698,2]
[426395127,1782345040000,-500.0,0.00013698,2]
[426395288,1782345041000,-2700.0,0.000139,5]
[426395286,1782345041000,-150.0,0.00013896,2]
[426395290,1782345041000,-150.0,0.00013901,2]
[426395294,1782345041000,-150.0,0.00013913,2]
[426395284,1782345041000,-150.0,0.00013896,2]
[426395279,1782345041000,-150.0,0.0001389,2]
[426395267,1782345041000,-150.0,0.00013858,2]
[426395269,1782345041000,-1412.66672693,0.0001386,2]
[426395275,1782345041000,-150.0,0.00013876,2]
[426395271,1782345041000,-150.0,0.00013862,2]
[426395302,1782345041000,-150.0,0.0001393,2]
[426395281,1782345041000,-150.0,0.00013895,2]
[426395296,1782345041000,-150.0,0.00013913,2]
[426395314,1782345041000,-150.0,0.00013963,2]
[426395298,1782345041000,-150.0,0.00013926,2]
[426395306,1782345041000,-150.0,0.00013934,2]
[426395308,1782345041000,-150.0,0.00013947,2]
[426395304,1782345041000,-150.0,0.00013932,2]
[426395300,1782345041000,-150.0,0.00013928,2]
[426395321,1782345041000,-150.0,0.00013966,2]
[426395316,1782345041000,-150.0,0.00013965,2]
[426395312,1782345041000,-150.0,0.00013953,2]
[426395329,1782345041000,-150.0,0.00013987,2]
[426395327,1782345041000,-150.0,0.00013987,2]
[426395310,1782345041000,-150.0,0.0001395,2]
[426395325,1782345041000,-150.0,0.00013982,2]
[426395277,1782345041000,-150.0,0.00013879,2]
[426395292,1782345041000,-150.0,0.00013902,2]
[426395263,1782345041000,-150.0,0.00013849,2]
[426395319,1782345041000,-150.0,0.00013965,2]
[426395261,1782345041000,-150.0,0.00013845,2]
[426395207,1782345041000,-150.0,0.00013743,2]
[426395209,1782345041000,-150.0,0.00013744,2]
[426395219,1782345041000,-150.0,0.0001376,2]
[426395221,1782345041000,-150.0,0.00013765,2]
[426395223,1782345041000,-150.0,0.00013775,2]
[426395225,1782345041000,-150.0,0.00013777,2]
[426395227,1782345041000,-150.0,0.0001378,2]
[426395213,1782345041000,-150.0,0.00013747,2]
[426395211,1782345041000,-150.0,0.00013746,2]
[426395215,1782345041000,-150.0,0.00013752,2]
[426395233,1782345041000,-150.0,0.00013794,2]
[426395229,1782345041000,-150.0,0.00013784,2]
[426395217,1782345041000,-150.0,0.0001376,2]
[426395265,1782345041000,-150.0,0.00013853,2]
[426395231,1782345041000,-150.0,0.00013787,2]
[426395251,1782345041000,-150.0,0.00013828,2]
[426395247,1782345041000,-10810.44242055,0.00013822,2]
[426395255,1782345041000,-150.0,0.00013838,2]
[426395235,1782345041000,-150.0,0.00013798,2]
[426395245,1782345041000,-150.0,0.00013821,2]
[426395239,1782345041000,-150.0,0.00013807,2]
[426395249,1782345041000,-13700.53445711,0.00013822,2]
[426395253,1782345041000,-150.0,0.00013828,2]
[426395241,1782345041000,-150.0,0.00013811,2]
[426395257,1782345041000,-150.0,0.00013839,2]
[426395243,1782345041000,-150.0,0.00013817,2]
[426395259,1782345041000,-150.0,0.0001384,2]
[426395273,1782345041000,-150.0,0.0001387,2]
[426395237,1782345041000,-150.0,0.00013802,2]
[426395323,1782345041000,-150.0,0.00013969,2]
[426395453,1782345041000,-150.0,0.00014135,2]
[426395335,1782345041000,-1857.37,0.00013989,2]
[426395403,1782345041000,-150.0,0.00014098,2]
[426395401,1782345041000,-6618.0,0.00014097,5]
[426395399,1782345041000,-6627.0,0.00014097,5]
[426395407,1782345041000,-150.0,0.00014101,2]
[426395411,1782345041000,-150.0,0.00014105,2]